bitfinex-derivatives/quotes_ETHF0:USTF0_20240915
["timestamp","ask_amount","ask_price","bid_price","bid_amount"]
[1726380400569,0.4084,2421.5,2421.4,16.08010597]
[1726380401071,0.4084,2421.5,2421.4,13.81046078]
[1726380401372,0.4084,2421.5,2421.4,16.08010207]
[1726380401575,0.4084,2421.5,2421.4,10.84969125]
[1726380401759,0.4084,2421.5,2421.4,12.9488653]
[1726380402070,0.4084,2421.5,2421.4,16.08007427]
[1726380402567,0.4084,2421.5,2421.4,12.87227427]
[1726380402768,0.4084,2421.5,2421.4,16.08007427]
[1726380404265,0.4084,2421.5,2421.4,16.07999037]
[1726380404775,0.4084,2421.5,2421.4,13.81035223]
[1726380404966,0.4084,2421.5,2421.4,16.07999741]
[1726380405167,0.4084,2421.5,2421.4,17.36283957]
[1726380405373,0.4084,2421.5,2421.4,18.34964123]
[1726380407673,0.4084,2421.5,2421.4,16.07999741]
[1726380407967,0.4084,2421.5,2421.4,18.34968516]
[1726380408371,0.4084,2421.5,2421.4,15.38894077]
[1726380408566,0.4084,2421.5,2421.4,16.57349238]
[1726380408767,0.4084,2421.5,2421.4,18.34977012]
[1726380408960,0.4084,2421.5,2421.4,17.56037014]
[1726380409167,0.4084,2421.5,2421.4,16.08016644]
[1726380410568,0.4084,2421.5,2421.4,12.87236644]
[1726380410874,0.4084,2421.5,2421.4,16.08016644]
[1726380411778,0.4084,2421.5,2421.4,16.08008074]
[1726380412164,0.4084,2421.5,2421.4,11.25669705]
[1726380412365,0.4084,2421.5,2421.4,12.08270974]
[1726380412569,0.4084,2421.5,2421.4,16.07993124]
[1726380413570,0.4084,2421.5,2421.4,14.83252822]
[1726380413768,0.4084,2421.5,2421.4,16.08012689]
[1726380415964,0.4084,2421.5,2421.4,16.85729689]
[1726380416979,0.4084,2421.5,2421.4,13.89660181]
[1726380417370,0.4084,2421.5,2421.4,17.27015383]
[1726380418181,0.4084,2421.5,2421.4,14.06271707]
[1726380418379,0.4084,2421.5,2421.4,17.27051707]
[1726380418674,1.49135753,2421.5,2421.4,17.27054428]
[1726380419476,1.49135753,2421.5,2421.4,15.64919849]
[1726380420184,1.49135753,2421.5,2421.4,16.42307616]
[1726380420380,1.49135753,2421.5,2421.4,17.27028895]
[1726380421176,1.49135753,2421.5,2421.4,14.51702631]
[1726380421583,1.49135753,2421.5,2421.4,13.75275668]
[1726380421783,1.49135753,2421.5,2421.4,17.27099835]
[1726380422082,1.49135753,2421.5,2421.4,14.06319835]
[1726380422383,1.49135753,2421.5,2421.4,19.54068534]
[1726380422686,1.49135753,2421.5,2421.4,15.64990789]
[1726380422878,1.49135753,2421.5,2421.4,17.91959248]
[1726380423082,0.4084,2421.5,2421.4,19.54125838]
[1726380423382,0.4084,2421.5,2421.4,20.31517963]
[1726380423578,2.03167571,2421.5,2421.4,18.69351373]
[1726380424480,2.03167571,2421.5,2421.4,12.68907696]
[1726380424682,2.03167571,2421.5,2421.4,13.94670169]
[1726380424880,2.03167571,2421.5,2421.4,16.42388258]
[1726380425083,2.03167571,2421.5,2421.4,15.48580676]
[1726380425285,2.03167571,2421.5,2421.4,18.69360676]
[1726380425584,2.03167571,2421.5,2421.4,21.37108284]
[1726380426285,2.03167571,2421.5,2421.4,18.16420024]
[1726380426686,2.03167571,2421.5,2421.4,21.37200024]
[1726380428081,2.03167571,2421.5,2421.4,17.35101584]
[1726380428389,2.03167571,2421.5,2421.4,21.37190824]
[1726380429087,2.03167571,2421.5,2421.4,19.50662482]
[1726380429589,2.03167571,2421.5,2421.4,22.00552044]
[1726380430890,2.03167571,2421.5,2421.4,18.79772044]
[1726380431090,2.03387023,2421.5,2421.4,22.00707116]
[1726380431788,2.03387023,2421.5,2421.4,19.86611431]
[1726380431990,2.03387023,2421.5,2421.4,22.65106245]
[1726380432191,2.03387023,2421.5,2421.4,22.00696158]
[1726380435185,2.03387023,2421.5,2421.4,22.65108439]
[1726380435385,2.03387023,2421.5,2421.4,18.27226555]
[1726380435589,2.03387023,2421.5,2421.4,22.00822217]
[1726380435790,2.03387023,2421.5,2421.4,22.65394212]
[1726380438990,2.03387023,2421.5,2421.4,22.65399711]
[1726380440495,2.03387023,2421.5,2421.4,22.65414325]
[1726380440996,2.03387023,2421.5,2421.4,19.44634325]
[1726380441388,2.03387023,2421.5,2421.4,22.65414325]
[1726380442206,2.03387023,2421.5,2421.4,19.44634325]
[1726380442498,2.03387023,2421.5,2421.4,18.273781]
[1726380442695,2.03387023,2421.5,2421.4,22.65533943]
[1726380442899,2.03387023,2421.5,2421.4,18.27485347]
[1726380443096,2.03387023,2421.5,2421.4,18.25321038]
[1726380443294,2.03387023,2421.5,2421.4,19.86933622]
[1726380443500,2.03387023,2421.5,2421.4,22.65536775]
[1726380444590,2.03387023,2421.5,2421.4,19.44756775]
[1726380444796,2.03387023,2421.5,2421.4,22.65536775]
[1726380444995,2.03387023,2421.5,2421.4,19.44756775]
[1726380445197,2.03387023,2421.5,2421.4,22.6554033]
[1726380445595,2.03387023,2421.5,2421.4,19.4476033]
[1726380445797,2.03387023,2421.5,2421.4,22.6554033]
[1726380446096,2.03387023,2421.5,2421.4,15.48886841]
[1726380446291,2.03387023,2421.5,2421.4,19.22497773]
[1726380446602,2.03387023,2421.5,2421.4,22.65536125]
[1726380447099,2.03387023,2421.5,2421.4,19.44756125]
[1726380447305,2.03387023,2421.5,2421.4,22.65536125]
[1726380447801,2.03387023,2421.5,2421.4,19.44756125]
[1726380448402,2.03387023,2421.5,2421.4,22.65536125]
[1726380449097,2.03387023,2421.5,2421.4,22.01099304]
[1726380449601,2.03387023,2421.5,2421.4,18.27488372]
[1726380449789,2.03387023,2421.5,2421.4,19.22508554]
[1726380449996,2.03387023,2421.5,2421.4,22.01118153]
[1726380451001,2.03387023,2421.5,2421.4,18.80338153]
[1726380451203,2.03387023,2421.5,2421.4,22.01118153]
[1726380452104,2.03387023,2421.5,2421.4,21.60678153]
[1726380452396,2.03387023,2421.5,2421.4,19.27123801]
[1726380452601,2.03387023,2421.5,2421.4,18.82067497]
[1726380452799,2.03387023,2421.5,2421.4,21.60675665]
[1726380453194,2.03387023,2421.5,2421.4,15.08446841]
[1726380453395,2.03387023,2421.5,2421.4,21.60679078]
[1726380453693,2.03387023,2421.5,2421.4,21.60680234]
[1726380453898,2.03387023,2421.5,2421.4,17.11563307]
[1726380454092,2.03387023,2421.5,2421.4,20.81703989]
[1726380454603,2.03387023,2421.5,2421.4,21.6068108]
[1726380455198,2.03387023,2421.5,2421.4,21.60686573]
[1726380456601,2.03387023,2421.5,2421.4,17.87057311]
[1726380456801,2.03387023,2421.5,2421.4,19.99068716]
[1726380457010,2.03387023,2421.5,2421.4,21.60689684]
[1726380457213,2.03387023,2421.5,2421.4,22.25130327]
[1726380457806,2.03387023,2421.5,2421.4,19.66744523]
[1726380458010,2.03387023,2421.5,2421.4,22.25141866]
[1726380458708,2.03387023,2421.5,2421.4,21.60700666]
[1726380459503,2.03387023,2421.5,2421.4,21.60757171]
[1726380459808,0.4084,2421.5,2421.4,21.60757171]
[1726380460005,0.4084,2421.5,2421.4,21.60770577]
[1726380460211,2.03412101,2421.5,2421.4,21.60770577]
[1726380463308,2.03412101,2421.5,2421.4,16.16257201]
[1726380463512,2.03412101,2421.5,2421.4,19.46580811]
[1726380463709,2.03412101,2421.5,2421.4,17.47552991]
[1726380463901,2.03412101,2421.5,2421.4,19.1293916]
[1726380464211,2.03412101,2421.5,2421.4,22.25209888]
[1726380464407,2.03412101,2421.5,2421.4,23.2393408]
[1726380464608,2.03412101,2421.5,2421.4,24.52275529]
[1726380464807,2.03412101,2421.5,2421.4,25.03828339]
[1726380465009,0.4084,2421.5,2421.4,25.03828339]
[1726380465200,2.03422645,2421.5,2421.4,25.03828339]
[1726380465609,0.4084,2421.5,2421.4,25.03828339]
[1726380465815,0.4084,2421.5,2421.4,21.83048339]
[1726380466110,0.4084,2421.5,2421.4,25.03828339]
[1726380466315,0.4084,2421.5,2421.4,24.39387313]
[1726380466713,0.4084,2421.5,2421.4,19.12948434]
[1726380467017,2.03422817,2421.5,2421.4,25.03845924]
[1726380467309,2.03423004,2421.5,2421.4,25.03845924]
[1726380467909,2.03422498,2421.5,2421.4,25.03845924]
[1726380469314,2.03422498,2421.5,2421.4,22.25230009]
[1726380470310,2.03422498,2421.5,2421.4,19.04450009]
[1726380470510,2.03422498,2421.5,2421.4,22.25230009]
[1726380473220,2.03422498,2421.5,2421.4,19.04450009]
[1726380473424,2.03422498,2421.5,2421.4,19.12959197]
[1726380473615,2.03422498,2421.5,2421.4,19.4658867]
[1726380473810,2.03422498,2421.5,2421.4,21.46223892]
[1726380474022,2.03422498,2421.5,2421.4,22.25201781]
[1726380474325,2.03422498,2421.5,2421.4,22.25202114]
[1726380476828,2.03422498,2421.5,2421.4,20.99387845]
[1726380477023,2.03422498,2421.5,2421.4,17.87131485]
[1726380477222,2.03422498,2421.5,2421.4,19.4658444]
[1726380477524,2.03422498,2421.5,2421.4,22.25196932]
[1726380478530,2.03422498,2421.5,2421.4,22.25191991]
[1726380480831,2.03422498,2421.5,2421.4,19.04411991]
[1726380481825,2.03422498,2421.5,2421.4,19.04412998]
[1726380482625,2.03422498,2421.5,2421.4,15.97732527]
[1726380482831,2.03422498,2421.5,2421.4,19.04400447]
[1726380483027,2.03422498,2421.5,2421.4,14.66342174]
[1726380483225,2.03422498,2421.5,2421.4,16.50897624]
[1726380483531,2.03422498,2421.5,2421.4,19.0440104]
[1726380486030,2.03422498,2421.5,2421.4,11.87734316]
[1726380486226,2.03422498,2421.5,2421.4,16.25784779]
[1726380486432,2.03422498,2421.5,2421.4,14.30605183]
[1726380486736,2.03422498,2421.5,2421.4,19.04381896]
[1726380489434,2.03422498,2421.5,2421.4,14.66331433]
[1726380489731,2.03422498,2421.5,2421.4,15.61343561]
[1726380489932,2.03422498,2421.5,2421.4,16.25781176]
[1726380490633,2.03422498,2421.5,2421.4,19.04384795]
[1726380491132,2.03422498,2421.5,2421.4,15.29326678]
[1726380491333,2.03422498,2421.5,2421.4,19.04386504]
[1726380492933,2.03422498,2421.5,2421.4,16.78332249]
[1726380493136,2.03422498,2421.5,2421.4,19.04374618]
[1726380493433,2.03422498,2421.5,2421.4,16.9987228]
[1726380493733,2.03422498,2421.5,2421.4,17.73831937]
[1726380494041,2.03422498,2421.5,2421.4,19.04350622]
[1726380496240,2.03422498,2421.5,2421.4,19.04333028]
[1726380496441,2.03422498,2421.5,2421.4,15.92106486]
[1726380496641,2.03422498,2421.5,2421.4,18.05631256]
[1726380496939,2.03422498,2421.5,2421.4,19.04347134]
[1726380499645,2.03422498,2421.5,2421.4,15.29304902]
[1726380499938,2.03422498,2421.5,2421.4,19.043669]
[1726380500938,2.03422498,2421.5,2421.4,19.04360211]
[1726380503337,2.03422498,2421.5,2421.4,14.66321264]
[1726380503538,2.03422498,2421.5,2421.4,13.13534588]
[1726380503743,2.03422498,2421.5,2421.4,14.85716011]
[1726380503941,2.03422498,2421.5,2421.4,16.77334041]
[1726380504240,2.03422498,2421.5,2421.4,21.41712632]
[1726380504442,2.03422498,2421.5,2421.4,21.82995632]
[1726380504638,2.03422498,2421.5,2421.4,19.04388722]
[1726380504838,2.03422498,2421.5,2421.4,21.82995643]
[1726380506958,2.03422498,2421.5,2421.4,14.66331158]
[1726380507252,2.03422498,2421.5,2421.4,19.04395635]
[1726380507442,2.03422498,2421.5,2421.4,20.52477702]
[1726380507639,2.03422498,2421.5,2421.4,21.8300642]
[1726380509051,2.03422498,2421.5,2421.4,21.83004622]
[1726380509750,2.03422498,2421.5,2421.4,19.04399504]
[1726380510453,2.03422498,2421.5,2421.4,19.04412568]
[1726380512250,2.03422498,2421.5,2421.4,22.25192568]
[1726380513753,2.03422498,2421.5,2421.4,15.08523713]
[1726380513953,2.03422498,2421.5,2421.4,19.46578496]
[1726380514255,2.03422498,2421.5,2421.4,17.8712892]
[1726380514453,2.03422498,2421.5,2421.4,19.46580269]
[1726380514851,2.03422498,2421.5,2421.4,20.47490826]
[1726380515151,2.03422498,2421.5,2421.4,19.1295357]
[1726380515353,2.03422498,2421.5,2421.4,22.25199854]
[1726380515549,2.03422498,2421.5,2421.4,19.04419854]
[1726380515748,2.03422498,2421.5,2421.4,22.25199854]
[1726380517455,2.03422498,2421.5,2421.4,22.25197899]
[1726380518058,2.03422498,2421.5,2421.4,11.87758449]
[1726380518359,2.03422498,2421.5,2421.4,19.46591869]
[1726380518550,2.03422498,2421.5,2421.4,20.47501826]
[1726380518754,2.03422498,2421.5,2421.4,22.25196521]
[1726380519960,2.03422498,2421.5,2421.4,22.2519757]
[1726380520256,2.03422498,2421.5,2421.4,19.0441757]
[1726380520463,2.03422498,2421.5,2421.4,22.2519757]
[1726380520660,2.03422498,2421.5,2421.4,15.08539498]
[1726380520865,2.03422498,2421.5,2421.4,16.34346699]
[1726380521161,2.03422498,2421.5,2421.4,19.46590608]
[1726380521354,2.03422498,2421.5,2421.4,22.25193386]
[1726380522859,2.03422498,2421.5,2421.4,19.04413386]
[1726380523061,2.03422498,2421.5,2421.4,22.25193386]
[1726380523962,2.03422498,2421.5,2421.4,17.87142276]
[1726380524159,2.03422498,2421.5,2421.4,15.08539498]
[1726380524360,2.03422498,2421.5,2421.4,19.46587028]
[1726380524562,2.03422498,2421.5,2421.4,18.64557708]
[1726380524756,2.03422498,2421.5,2421.4,21.38989518]
[1726380524956,2.03422498,2421.5,2421.4,22.25181231]
[1726380525163,2.03422498,2421.5,2421.4,24.05061953]
[1726380525367,2.03422498,2421.5,2421.4,25.03778701]
[1726380527665,2.03422498,2421.5,2421.4,19.12946138]
[1726380527864,2.03422498,2421.5,2421.4,25.03789297]
[1726380528363,2.03422498,2421.5,2421.4,23.77982738]
[1726380528568,2.03422498,2421.5,2421.4,25.03789747]
[1726380529363,2.03422498,2421.5,2421.4,25.03791494]
[1726380529770,2.03422498,2421.5,2421.4,22.25191413]
[1726380531072,2.03422498,2421.5,2421.4,19.1295054]
[1726380531373,0.4084,2421.5,2421.4,22.25200448]
[1726380531670,2.03432137,2421.5,2421.4,22.25200448]
[1726380531861,0.4084,2421.5,2421.4,22.25200448]
[1726380532773,2.03432322,2421.5,2421.4,22.25200448]
[1726380534162,2.03432322,2421.5,2421.4,22.2526079]
[1726380535268,2.03432322,2421.5,2421.4,20.63646637]
[1726380535477,2.03432322,2421.5,2421.4,22.25257682]
[1726380536869,2.03432322,2421.5,2421.4,21.83974682]
[1726380538067,0.4084,2421.5,2421.4,17.85041685]
[1726380538272,2.034305,2421.5,2421.4,22.25259782]
[1726380538868,2.034305,2421.5,2421.4,22.25258635]
[1726380540974,2.034305,2421.5,2421.4,17.87204735]
[1726380541172,2.034305,2421.5,2421.4,19.46646856]
[1726380541377,2.034305,2421.5,2421.4,22.2524688]
[1726380541977,2.034305,2421.5,2421.4,19.0446688]
[1726380542179,2.034305,2421.5,2421.4,22.2524688]
[1726380542378,2.034305,2421.5,2421.4,22.25239825]
[1726380543774,2.034305,2421.5,2421.4,17.87193409]
[1726380543977,2.034305,2421.5,2421.4,19.46668159]
[1726380544170,2.034305,2421.5,2421.4,19.99224912]
[1726380544475,2.034305,2421.5,2421.4,19.96032577]
[1726380544673,2.034305,2421.5,2421.4,22.25289814]
[1726380547071,2.034305,2421.5,2421.4,22.25447442]
[1726380547283,2.034305,2421.5,2421.4,22.25447843]
[1726380547596,2.034305,2421.5,2421.4,22.25446238]
[1726380547796,2.034305,2421.5,2421.4,20.08947049]
[1726380548598,2.034305,2421.5,2421.4,20.47807049]
[1726380549501,2.034305,2421.5,2421.4,22.64301928]
[1726380550196,2.034305,2421.5,2421.4,20.47807049]
[1726380550798,2.034305,2421.5,2421.4,20.47800227]
[1726380551800,2.034305,2421.5,2421.4,20.80718977]
[1726380551996,2.034305,2421.5,2421.4,17.0555841]
[1726380554404,2.034305,2421.5,2421.4,12.67488352]
[1726380554704,2.034305,2421.5,2421.4,17.05554424]
[1726380555397,2.034305,2421.5,2421.4,17.0555515]
[1726380557400,2.034305,2421.5,2421.4,12.67488352]
[1726380557588,2.034305,2421.5,2421.4,14.11855627]
[1726380557794,2.034305,2421.5,2421.4,17.05546513]
[1726380557998,2.034305,2421.5,2421.4,17.05547504]
[1726380559493,2.70911706,2421.9,2421.5,4.54242]
[1726380559697,2.70911706,2421.9,2421.8,4.78002454]
[1726380559897,2.70911706,2421.9,2421.8,14.72352217]
[1726380560108,2.70911706,2421.9,2421.8,19.69373]
[1726380560297,0.49311706,2421.9,2421.8,19.50155436]
[1726380560498,3.25094047,2422.1,2422.0,0.41273]
[1726380560700,3.25094047,2422.1,2422.0,9.22036162]
[1726380560907,3.25094047,2422.1,2422.0,5.9790352]
[1726380561115,3.25094047,2422.1,2422.0,12.15333831]
[1726380561298,3.25094047,2422.1,2422.0,12.49596777]
[1726380561499,3.25094047,2422.1,2422.0,11.98092898]
[1726380561700,3.25094047,2422.1,2422.0,12.37522898]
[1726380561905,3.25094047,2422.1,2422.0,12.75822898]
[1726380562208,3.25094047,2422.1,2422.0,10.90811528]
[1726380564404,3.25094047,2422.1,2422.0,10.90813287]
[1726380564600,4.71779446,2422.4,2422.1,0.41271]
[1726380564601,0.3821,2422.4,2422.1,0.41271]
[1726380564808,0.3821,2422.4,2422.3,3.2078]
[1726380565001,0.3821,2422.4,2422.3,4.2392961]
[1726380565201,4.5101,2422.4,2422.3,8.63672721]
[1726380565911,8.9079,2422.4,2422.3,4.89064963]
[1726380566107,12.11277,2422.4,2421.9,3.2078]
[1726380566306,1.19,2422.0,2421.8,1.07824557]
[1726380566606,1.19,2422.0,2421.9,4.39658433]
[1726380566914,1.19,2422.0,2421.8,4.39658433]
[1726380566915,5.3188,2422.0,2421.8,4.39658433]
[1726380567115,4.1288,2421.9,2421.8,4.39658433]
[1726380567409,4.1288,2421.9,2421.7,5.20357746]
[1726380567713,1.19,2422.0,2421.7,0.41278]
[1726380567910,1.19,2422.0,2421.8,4.79079746]
[1726380568305,4.1288,2421.9,2421.8,4.79079746]
[1726380569006,4.1288,2421.9,2421.7,4.31059521]
[1726380569206,0.7871,2421.8,2421.6,3.62059]
[1726380569604,0.7871,2421.8,2421.7,4.63413612]
[1726380574212,0.3869,2421.8,2421.7,5.82413612]
[1726380574610,0.3869,2421.8,2421.7,1.19]
[1726380574813,0.3869,2421.8,2421.7,5.69228605]
[1726380575016,0.3869,2421.8,2421.7,6.10506605]
[1726380575620,0.3869,2421.8,2421.7,5.69228605]
[1726380576017,0.3869,2421.8,2421.7,4.50228605]
[1726380578117,0.3869,2421.8,2421.7,5.52289578]
[1726380578316,0.3869,2421.8,2421.7,4.50228605]
[1726380578623,0.3869,2421.8,2421.7,5.03402803]
[1726380578816,0.3869,2421.8,2421.7,5.52287623]
[1726380579717,0.3869,2421.8,2421.7,5.92937623]
[1726380579923,0.3869,2421.8,2421.7,7.11937623]
[1726380582220,0.3869,2421.8,2421.7,7.00041425]
[1726380582523,0.3869,2421.8,2421.7,7.5321854]
[1726380583519,0.3869,2421.8,2421.7,6.3421854]
[1726380585324,0.3869,2421.8,2421.7,6.7446854]
[1726380585826,0.3869,2421.8,2421.7,7.40291425]
[1726380586120,0.3869,2421.8,2421.7,7.93472829]
[1726380589531,0.3869,2421.8,2421.7,7.402946]
[1726380589829,0.3869,2421.8,2421.7,7.4458565]
[1726380590127,0.3869,2421.8,2421.7,7.93474658]
[1726380591015,0.3869,2421.8,2421.7,6.33196658]
[1726380591333,6.11927,2421.8,2421.7,5.52308596]
[1726380591627,5.7065,2421.8,2421.7,5.52308596]
[1726380593028,12.11927,2421.8,2421.7,0.48889008]
[1726380593230,14.28071772,2421.8,2421.5,0.096]
[1726380593523,1.19,2421.6,2421.5,0.096]
[1726380593718,1.19,2421.6,2421.5,0.62805602]
[1726380593919,4.5045,2421.6,2421.5,0.096]
[1726380597529,11.6945,2421.6,2421.5,0.096]
[1726380597721,5.6945,2421.6,2421.5,0.096]
[1726380598527,4.5045,2421.6,2421.5,0.096]
[1726380604430,5.58442932,2421.6,2421.5,0.096]
[1726380606230,1.07992932,2421.6,2421.5,0.50882]
[1726380606435,1.07992932,2421.7,2421.6,0.4128]
[1726380606634,1.46682932,2421.8,2421.6,1.9964]
[1726380606840,1.46682932,2421.8,2421.7,4.35546542]
[1726380607139,1.46682932,2421.8,2421.6,1.9964]
[1726380607539,1.46682932,2421.8,2421.7,4.50891009]
[1726380609038,1.07992932,2421.8,2421.7,4.50891009]
[1726380609244,1.07992932,2421.8,2421.7,6.11169009]
[1726380609632,1.07992932,2421.9,2421.7,6.11169009]
[1726380610536,1.07992932,2421.8,2421.7,6.11169009]
[1726380610739,1.07992932,2421.8,2421.7,6.64333346]
[1726380610939,1.07992932,2421.8,2421.7,7.12751336]
[1726380611636,1.07992932,2421.8,2421.7,5.93751336]
[1726380611844,1.07992932,2421.9,2421.8,0.41277]
[1726380612037,1.07992932,2421.9,2421.8,1.42859327]
[1726380612233,1.07992932,2421.9,2421.8,5.76195526]
[1726380612944,1.07992932,2421.9,2421.8,5.34918526]
[1726380613133,1.07992932,2421.9,2421.8,5.76195526]
[1726380613829,1.07992932,2422.0,2421.8,4.74613199]
[1726380614033,1.07992932,2422.0,2421.9,0.5315597]
[1726380614445,1.07992932,2422.0,2421.9,5.79311711]
[1726380616134,1.07992932,2422.0,2421.9,6.20586711]
[1726380616334,1.07992932,2422.1,2421.9,5.79311711]
[1726380616537,2.26992932,2422.1,2421.9,4.77744805]
[1726380616841,1.08104667,2422.0,2421.9,5.19019805]
[1726380617047,1.08104667,2422.0,2421.9,5.67426854]
[1726380617235,1.08104667,2422.0,2421.9,5.19019805]
[1726380617436,1.08104667,2422.0,2421.9,5.30895188]
[1726380617740,1.08104667,2422.0,2421.9,6.32452973]
[1726380617940,1.08104667,2422.0,2421.9,5.7930259]
[1726380618244,1.08104667,2422.1,2421.9,6.2057759]
[1726380618434,1.08104667,2422.1,2421.9,5.19019805]
[1726380618845,1.08104667,2422.1,2422.0,0.41273]
[1726380619041,1.08104667,2422.1,2422.0,0.79253]
[1726380619243,1.08104667,2422.1,2422.0,5.14901172]
[1726380620550,1.08104667,2422.1,2422.0,4.73628172]
[1726380621050,1.08104667,2422.1,2422.0,5.13218172]
[1726380622049,1.08104667,2422.1,2422.0,5.54491172]
[1726380630446,1.08104667,2422.1,2422.0,5.13218172]
[1726380630757,1.08104667,2422.1,2422.0,4.73628172]
[1726380638165,2.27104667,2422.1,2422.0,4.73628172]
[1726380642358,2.68376667,2422.1,2422.0,4.73628172]
[1726380642767,3.22399298,2422.1,2422.0,5.75205247]
[1726380643567,2.81127298,2422.1,2422.0,5.75205247]
[1726380645068,2.81127298,2422.1,2422.0,5.22044354]
[1726380645265,2.81127298,2422.1,2422.0,4.73628172]
[1726380645463,2.81127298,2422.1,2422.0,5.26788941]
[1726380645766,2.81127298,2422.1,2422.0,5.75204893]
[1726380647464,1.19,2422.1,2422.0,5.75204893]
[1726380648674,1.19,2422.1,2422.0,4.73628172]
[1726380648974,1.19,2422.1,2422.0,5.22041612]
[1726380649267,1.19,2422.1,2422.0,6.23612985]
[1726380649485,1.19,2422.1,2422.0,5.75199545]
[1726380651273,1.19,2422.1,2422.0,6.52695231]
[1726380651475,2.98254772,2422.2,2422.0,7.60519788]
[1726380651777,2.98254772,2422.2,2422.1,1.01571373]
[1726380651981,2.98254772,2422.2,2422.1,1.38951373]
[1726380652167,7.11134772,2422.2,2422.1,0.3738]
[1726380652467,7.11134772,2422.2,2422.1,1.38995393]
[1726380652468,4.94991,2422.2,2422.1,1.38995393]
[1726380653370,7.65090925,2422.2,2422.1,1.38995393]
[1726380655378,7.65090925,2422.2,2422.1,3.01579719]
[1726380655680,7.65090925,2422.2,2422.1,1.75651867]
[1726380655881,3.52210925,2422.2,2422.1,2.5314781]
[1726380656078,7.65090925,2422.2,2422.1,3.01582774]
[1726380657472,3.52210925,2422.2,2422.1,3.01582774]
[1726380659385,0.82111,2422.2,2422.1,4.09407331]
[1726380659579,3.53031513,2422.2,2422.1,4.0940282]
[1726380660086,0.82111,2422.2,2422.1,4.0940282]
[1726380660382,0.82111,2422.2,2422.1,3.01578263]
[1726380660581,0.82111,2422.2,2422.1,4.0940282]
[1726380661380,0.82111,2422.2,2422.1,3.01578263]
[1726380661582,0.82111,2422.2,2422.1,0.3738]
[1726380661880,0.82111,2422.2,2422.1,1.75647559]
[1726380662077,0.82111,2422.2,2422.1,2.83472116]
[1726380662278,0.82111,2422.2,2422.1,4.09399377]
[1726380662279,3.53033777,2422.2,2422.1,4.09399377]
[1726380662687,0.82111,2422.2,2422.1,4.09399377]
[1726380662983,3.53033956,2422.2,2422.1,4.09399377]
[1726380663189,0.82111,2422.2,2422.1,4.09399377]
[1726380663480,3.53034528,2422.2,2422.1,4.09399377]
[1726380663688,0.82111,2422.2,2422.1,3.0157482]
[1726380663876,0.82111,2422.2,2422.1,4.09399377]
[1726380664185,3.53033848,2422.2,2422.1,4.09399377]
[1726380664389,0.82111,2422.2,2422.1,4.09399377]
[1726380664890,3.53034772,2422.2,2422.1,4.09399377]
[1726380665094,0.82111,2422.2,2422.1,3.0157482]
[1726380665291,0.82111,2422.2,2422.1,3.0157563]
[1726380665491,0.82111,2422.2,2422.1,4.09400187]
[1726380666387,0.4084,2422.2,2422.1,4.09400187]
[1726380666893,0.8211,2422.2,2422.1,4.09400187]
[1726380667485,3.11764293,2422.2,2422.1,4.09400187]
[1726380667791,3.11762947,2422.2,2422.1,4.09400187]
[1726380668291,3.11762947,2422.2,2422.1,4.09398315]
[1726380668292,0.4084,2422.2,2422.1,4.09398315]
[1726380668792,0.4084,2422.2,2422.1,4.09399382]
[1726380669085,3.1176309,2422.2,2422.1,1.45204557]
[1726380669289,3.1176309,2422.2,2422.1,4.09389431]
[1726380669991,3.11762763,2422.2,2422.1,4.09389431]
[1726380672293,3.11762763,2422.2,2422.1,4.57760402]
[1726380672995,3.11762763,2422.2,2422.1,4.09389431]
[1726380678196,3.11762763,2422.2,2422.1,4.50661431]
[1726380678389,3.11762763,2422.2,2422.1,4.09389431]
[1726380678597,3.11762763,2422.2,2422.1,4.50661431]
[1726380678890,3.11762763,2422.2,2422.1,4.09389431]
[1726380679092,3.11762763,2422.2,2422.1,4.50645249]
[1726380679292,3.11762763,2422.2,2422.1,4.09373249]
[1726380682293,3.11762763,2422.2,2422.1,2.83450741]
[1726380682496,3.11762763,2422.2,2422.1,4.09365049]
[1726380685698,3.11762763,2422.2,2422.1,1.45204557]
[1726380686013,3.11762763,2422.2,2422.1,1.75635758]
[1726380686202,3.11762763,2422.2,2422.1,2.83460315]
[1726380686498,3.11762763,2422.2,2422.1,3.01553145]
[1726380686706,3.11762763,2422.2,2422.1,4.09377702]
[1726380687497,3.11762763,2422.2,2422.1,2.64173145]
[1726380687498,4.0289,2422.2,2422.1,2.64173145]
[1726380687698,18.20324047,2422.2,2422.1,0.48429764]
[1726380687896,0.41277,2421.8,2421.7,0.096]
[1726380688097,3.2078,2421.8,2421.7,0.53210108]
[1726380688304,3.2078,2421.8,2421.5,0.3912]
[1726380688511,3.91483337,2421.7,2421.6,0.53214229]
[1726380688698,5.10483337,2421.7,2421.6,5.23444411]
[1726380689012,5.10483337,2421.7,2421.6,4.70230182]
[1726380689307,5.10483337,2421.7,2421.6,5.23445137]
[1726380689698,5.10483337,2421.7,2421.6,4.70230182]
[1726380690514,2.39749,2421.7,2421.6,4.70230182]
[1726380691800,0.3969,2421.7,2421.6,4.70230182]
[1726380692014,2.56056064,2421.7,2421.6,5.09850182]
[1726380694513,0.3969,2421.7,2421.6,5.09850182]
[1726380695409,0.80968,2421.7,2421.6,5.09850182]
[1726380696515,1.99968,2421.7,2421.6,5.09850182]
[1726380697309,1.5869,2421.7,2421.6,5.09850182]
[1726380697513,0.3969,2421.7,2421.6,5.09850182]
[1726380698416,2.01826527,2421.7,2421.6,5.09850182]
[1726380699013,0.3969,2421.7,2421.6,5.09850182]
[1726380699509,2.01818953,2421.7,2421.6,5.09850182]
[1726380701809,2.43096953,2421.7,2421.6,5.09850182]
[1726380703406,2.01818953,2421.7,2421.6,5.09850182]
[1726380708810,3.62096953,2421.7,2421.6,4.70230182]
[1726380709017,3.20818953,2421.7,2421.4,0.90142]
[1726380709217,1.08045161,2421.6,2421.4,1.28042]
[1726380709419,1.08045161,2421.6,2421.5,4.70316952]
[1726380715929,2.27045161,2421.6,2421.5,4.70316952]
[1726380716425,2.68325161,2421.6,2421.5,4.70316952]
[1726380716616,2.68325161,2421.6,2421.4,0.7716]
[1726380716617,3.22408953,2421.6,2421.4,0.7716]
[1726380716826,1.08057875,2421.5,2421.4,0.7716]
[1726380718123,2.03410953,2421.5,2421.4,0.7716]
[1726380718320,1.62128953,2421.5,2421.4,0.7716]
[1726380718517,3.22410953,2421.6,2421.4,0.7716]
[1726380718729,1.62128953,2421.5,2421.4,0.7716]
[1726380718926,5.24190953,2421.5,2421.4,0.3926]
[1726380719131,8.15282,2421.5,2421.4,0.3926]
[1726380719326,10.31648064,2421.5,2421.4,0.3926]
[1726380720328,8.15282,2421.5,2421.4,0.3926]
[1726380720530,0.41285,2421.3,2421.2,0.096]
[1726380720737,0.41285,2421.3,2421.1,0.7518]
[1726380720738,0.41287,2421.2,2421.1,0.7518]
[1726380721031,2.03409154,2421.2,2421.1,0.7518]